fUST/lending_fUST_20260609
["ID","MTS","AMOUNT","RATE_DAILY","PERIOD"]
[424537317,1780989042000,-500.0,0.00016438,2]
[424537342,1780989042000,-500.0,0.00016438,2]
[424537316,1780989042000,-500.0,0.00016438,2]
[424537291,1780989042000,-500.0,0.00016438,2]
[424537314,1780989042000,-500.0,0.00016438,2]
[424537348,1780989042000,-500.0,0.00016438,2]
[424537298,1780989042000,-500.0,0.00016438,2]
[424537293,1780989042000,-500.0,0.00016438,2]
[424537299,1780989042000,-500.0,0.00016438,2]
[424537289,1780989042000,-500.0,0.00016438,2]
[424537290,1780989042000,-500.0,0.00016438,2]
[424537296,1780989042000,-500.0,0.00016438,2]
[424537294,1780989042000,-500.0,0.00016438,2]
[424537297,1780989042000,-393.5717548,0.00016438,2]
[424537295,1780989042000,-500.0,0.00016438,2]
[424537300,1780989042000,-584.17,0.00016438,2]
[424537302,1780989042000,-500.0,0.00016438,2]
[424537329,1780989042000,-500.0,0.00016438,2]
[424537303,1780989042000,-2273.56,0.00016438,2]
[424537311,1780989042000,-500.0,0.00016438,2]
[424537306,1780989042000,-500.0,0.00016438,2]
[424537307,1780989042000,-500.0,0.00016438,2]
[424537301,1780989042000,-500.0,0.00016438,2]
[424537312,1780989042000,-500.0,0.00016438,2]
[424537309,1780989042000,-500.0,0.00016438,2]
[424537308,1780989042000,-500.0,0.00016438,2]
[424537305,1780989042000,-533.91,0.00016438,2]
[424537310,1780989042000,-548.37,0.00016438,2]
[424537325,1780989042000,-500.0,0.00016438,2]
[424537328,1780989042000,-500.0,0.00016438,2]
[424537326,1780989042000,-500.0,0.00016438,2]
[424537313,1780989042000,-500.0,0.00016438,2]
[424537357,1780989042000,-500.0,0.00016438,2]
[424537324,1780989042000,-500.0,0.00016438,2]
[424537353,1780989042000,-501.06637723,0.00016438,2]
[424537391,1780989042000,-7554.59,0.00016438,2]
[424537388,1780989042000,-500.0,0.00016438,2]
[424537390,1780989042000,-500.0,0.00016438,2]
[424537392,1780989042000,-550.93155675,0.00016438,2]
[424537403,1780989042000,-500.0,0.00016438,2]
[424537393,1780989042000,-500.0,0.00016438,2]
[424537394,1780989042000,-500.0,0.00016438,2]
[424537395,1780989042000,-500.0,0.00016438,2]
[424537399,1780989042000,-814.22,0.00016438,2]
[424537398,1780989042000,-416.9093891,0.00016438,2]
[424537401,1780989042000,-500.0,0.00016438,2]
[424537400,1780989042000,-500.0,0.00016438,2]
[424537389,1780989042000,-500.0,0.00016438,2]
[424537397,1780989042000,-500.0,0.00016438,2]
[424537406,1780989042000,-500.0,0.00016438,2]
[424537404,1780989042000,-500.0,0.00016438,2]
[424537415,1780989042000,-244.559637,0.0001653,2]
[424537408,1780989042000,-500.0,0.00016438,2]
[424537409,1780989042000,-500.0,0.00016438,2]
[424537419,1780989042000,-600.0,0.00016662,2]
[424537410,1780989042000,-500.0,0.00016438,2]
[424537417,1780989042000,-306.25774598,0.00016589,2]
[424537412,1780989042000,-536.89854397,0.00016438,2]
[424537413,1780989042000,-272.55,0.00016438,2]
[424537411,1780989042000,-500.0,0.00016438,2]
[424537358,1780989042000,-500.0,0.00016438,2]
[424537402,1780989042000,-500.0,0.00016438,2]
[424537386,1780989042000,-500.0,0.00016438,2]
[424537420,1780989042000,-1424.531,0.00016697,2]
[424537383,1780989042000,-500.0,0.00016438,2]
[424537351,1780989042000,-500.94463827,0.00016438,2]
[424537350,1780989042000,-500.0,0.00016438,2]
[424537354,1780989042000,-500.0,0.00016438,2]
[424537352,1780989042000,-500.0,0.00016438,2]
[424537360,1780989042000,-500.0,0.00016438,2]
[424537359,1780989042000,-500.0,0.00016438,2]
[424537363,1780989042000,-500.0,0.00016438,2]
[424537385,1780989042000,-500.0,0.00016438,2]
[424537362,1780989042000,-500.0,0.00016438,2]
[424537366,1780989042000,-598.59,0.00016438,2]
[424537365,1780989042000,-500.0,0.00016438,2]
[424537368,1780989042000,-500.0,0.00016438,2]
[424537367,1780989042000,-500.0,0.00016438,2]
[424537364,1780989042000,-500.0,0.00016438,2]
[424537370,1780989042000,-500.0,0.00016438,2]
[424537384,1780989042000,-500.0,0.00016438,2]
[424537371,1780989042000,-500.0,0.00016438,2]
[424537382,1780989042000,-500.0,0.00016438,2]
[424537381,1780989042000,-500.0,0.00016438,2]
[424537378,1780989042000,-500.0,0.00016438,2]
[424537379,1780989042000,-458.67,0.00016438,2]
[424537375,1780989042000,-655.28,0.00016438,2]
[424537376,1780989042000,-500.0,0.00016438,2]
[424537374,1780989042000,-603.77137508,0.00016438,2]
[424537373,1780989042000,-500.0,0.00016438,2]
[424537372,1780989042000,-500.0,0.00016438,2]
[424537380,1780989042000,-500.0,0.00016438,2]
[424537464,1780989043000,-2666.66,0.00016712,2]
[424537463,1780989043000,-500.0,0.00016712,2]
[424537474,1780989043000,-500.0,0.00016712,2]
[424537461,1780989043000,-580.17,0.00016712,2]
[424537458,1780989043000,-500.0,0.00016712,2]
[424537459,1780989043000,-585.42,0.00016712,2]
[424537452,1780989043000,-500.0,0.00016712,2]
[424537454,1780989043000,-507.46,0.00016712,2]
[424537455,1780989043000,-566.72371918,0.00016712,2]
[424537462,1780989043000,-500.0,0.00016712,2]
[424537475,1780989043000,-500.0,0.00016712,2]
[424537485,1780989043000,-500.0,0.00016712,2]
[424537465,1780989043000,-500.0,0.00016712,2]
[424537469,1780989043000,-500.0,0.00016712,2]
[424537466,1780989043000,-500.0,0.00016712,2]
[424537473,1780989043000,-524.92,0.00016712,2]
[424537467,1780989043000,-299.00423566,0.00016712,2]
[424537472,1780989043000,-500.0,0.00016712,2]
[424537471,1780989043000,-638.36,0.00016712,2]
[424537476,1780989043000,-500.0,0.00016712,2]
[424537478,1780989043000,-500.0,0.00016712,2]
[424537479,1780989043000,-584.17,0.00016712,2]
[424537477,1780989043000,-500.0,0.00016712,2]
[424537457,1780989043000,-500.0,0.00016712,2]
[424537468,1780989043000,-607.87,0.00016712,2]
[424537456,1780989043000,-500.0,0.00016712,2]
[424537434,1780989043000,-724.11,0.00016712,2]
[424537451,1780989043000,-685.64,0.00016712,2]
[424537484,1780989043000,-500.0,0.00016712,2]
[424537421,1780989043000,-555.677,0.00016697,2]
[424537431,1780989043000,-477.9,0.00016712,2]
[424537422,1780989043000,-2207.0,0.00016697,2]
[424537424,1780989043000,-186.0,0.00016697,2]
[424537423,1780989043000,-444.0,0.00016697,2]
[424537425,1780989043000,-500.0,0.00016712,2]
[424537430,1780989043000,-500.0,0.00016712,2]
[424537427,1780989043000,-500.0,0.00016712,2]
[424537426,1780989043000,-500.0,0.00016712,2]
[424537432,1780989043000,-500.0,0.00016712,2]
[424537433,1780989043000,-500.0,0.00016712,2]
[424537435,1780989043000,-500.0,0.00016712,2]
[424537438,1780989043000,-500.0,0.00016712,2]
[424537436,1780989043000,-212.77,0.00016712,2]
[424537439,1780989043000,-500.0,0.00016712,2]
[424537443,1780989043000,-500.0,0.00016712,2]
[424537442,1780989043000,-500.0,0.00016712,2]
[424537444,1780989043000,-500.0,0.00016712,2]
[424537446,1780989043000,-456.26,0.00016712,2]
[424537447,1780989043000,-500.0,0.00016712,2]
[424537441,1780989043000,-213.88,0.00016712,2]
[424537448,1780989043000,-500.0,0.00016712,2]
[424537445,1780989043000,-500.0,0.00016712,2]
[424537453,1780989043000,-500.0,0.00016712,2]
[424537450,1780989043000,-500.0,0.00016712,2]
[424537480,1780989043000,-500.0,0.00016712,2]
[424537429,1780989043000,-500.0,0.00016712,2]
[424537482,1780989043000,-2273.56,0.00016712,2]
[424537519,1780989043000,-500.0,0.00016712,2]
[424537520,1780989043000,-500.0,0.00016712,2]
[424537522,1780989043000,-814.22,0.00016712,2]
[424537521,1780989043000,-7554.59,0.00016712,2]
[424537525,1780989043000,-155.54626138,0.00016745,7]
[424537523,1780989043000,-500.0,0.00016712,2]
[424537524,1780989043000,-500.0,0.00016712,2]
[424537529,1780989043000,-500.0,0.00016986,2]
[424537527,1780989043000,-165.44433332,0.00016986,2]
[424537531,1780989043000,-500.0,0.00016986,2]
[424537528,1780989043000,-500.0,0.00016986,2]
[424537532,1780989043000,-500.0,0.00016986,2]
[424537534,1780989043000,-724.11,0.00016986,2]
[424537545,1780989043000,-685.64,0.00016986,2]
[424537544,1780989043000,-500.0,0.00016986,2]
[424537537,1780989043000,-500.0,0.00016986,2]
[424537539,1780989043000,-500.0,0.00016986,2]
[424537535,1780989043000,-500.0,0.00016986,2]
[424537533,1780989043000,-205.79,0.00016986,2]
[424537536,1780989043000,-500.0,0.00016986,2]
[424537540,1780989043000,-500.0,0.00016986,2]
[424537543,1780989043000,-500.0,0.00016986,2]
[424537541,1780989043000,-500.0,0.00016986,2]
[424537542,1780989043000,-500.0,0.00016986,2]
[424537483,1780989043000,-248.21,0.00016712,2]
[424537518,1780989043000,-500.0,0.00016712,2]
[424537512,1780989043000,-598.59,0.00016712,2]
[424537530,1780989043000,-500.0,0.00016986,2]
[424537511,1780989043000,-500.0,0.00016712,2]
[424537486,1780989043000,-500.0,0.00016712,2]
[424537514,1780989043000,-500.0,0.00016712,2]
[424537487,1780989043000,-500.0,0.00016712,2]
[424537488,1780989043000,-500.0,0.00016712,2]
[424537489,1780989043000,-500.0,0.00016712,2]
[424537490,1780989043000,-500.0,0.00016712,2]
[424537501,1780989043000,-500.0,0.00016712,2]
[424537495,1780989043000,-500.0,0.00016712,2]
[424537497,1780989043000,-436.65713502,0.00016712,2]
[424537493,1780989043000,-500.0,0.00016712,2]
[424537500,1780989043000,-500.0,0.00016712,2]
[424537494,1780989043000,-500.0,0.00016712,2]
[424537498,1780989043000,-500.0,0.00016712,2]
[424537496,1780989043000,-1144.34,0.00016712,2]
[424537504,1780989043000,-500.0,0.00016712,2]
[424537491,1780989043000,-557.2,0.00016712,2]
[424537499,1780989043000,-500.0,0.00016712,2]
[424537505,1780989043000,-500.0,0.00016712,2]
[424537506,1780989043000,-530.44,0.00016712,2]
[424537508,1780989043000,-500.0,0.00016712,2]
[424537517,1780989043000,-500.0,0.00016712,2]
[424537513,1780989043000,-500.0,0.00016712,2]
[424537516,1780989043000,-655.28,0.00016712,2]
[424537507,1780989043000,-1170.14,0.00016712,2]
[424537509,1780989043000,-500.0,0.00016712,2]
[424537502,1780989043000,-500.0,0.00016712,2]
[424537510,1780989043000,-500.0,0.00016712,2]
[424537592,1780989044000,-1285.10188481,0.00017,2]
[424537590,1780989044000,-500.0,0.00016986,2]
[424537604,1780989044000,-724.11,0.0001726,2]
[424537581,1780989044000,-153.42,0.00016986,2]
[424537579,1780989044000,-500.0,0.00016986,2]
[424537580,1780989044000,-500.0,0.00016986,2]
[424537586,1780989044000,-500.0,0.00016986,2]
[424537582,1780989044000,-598.59,0.00016986,2]
[424537584,1780989044000,-655.28,0.00016986,2]
[424537587,1780989044000,-500.0,0.00016986,2]
[424537603,1780989044000,-500.0,0.0001726,2]
[424537585,1780989044000,-500.0,0.00016986,2]
[424537602,1780989044000,-500.0,0.0001726,2]
[424537606,1780989044000,-500.0,0.0001726,2]
[424537596,1780989044000,-455.17910527,0.00017101,2]
[424537598,1780989044000,-244.559637,0.00017198,2]
[424537594,1780989044000,-252.87728071,0.00017101,2]
[424537591,1780989044000,-500.0,0.00016986,2]
[424537597,1780989044000,-151.0,0.00017148,2]
[424537601,1780989044000,-500.0,0.0001726,2]
[424537600,1780989044000,-500.0,0.0001726,2]
[424537599,1780989044000,-500.0,0.0001726,2]
[424537605,1780989044000,-500.0,0.0001726,2]
[424537608,1780989044000,-500.0,0.0001726,2]
[424537610,1780989044000,-500.0,0.0001726,2]
[424537618,1780989044000,-500.0,0.0001726,2]
[424537578,1780989044000,-1170.14,0.00016986,2]
[424537593,1780989044000,-2456.01848107,0.00017026,2]
[424537588,1780989044000,-7554.59,0.00016986,2]
[424537549,1780989044000,-500.0,0.00016986,2]
[424537577,1780989044000,-500.0,0.00016986,2]
[424537546,1780989044000,-500.0,0.00016986,2]
[424537558,1780989044000,-500.0,0.00016986,2]
[424537612,1780989044000,-418.12,0.0001726,2]
[424537559,1780989044000,-584.17,0.00016986,2]
[424537548,1780989044000,-500.0,0.00016986,2]
[424537547,1780989044000,-500.0,0.00016986,2]
[424537560,1780989044000,-500.0,0.00016986,2]
[424537551,1780989044000,-2666.66,0.00016986,2]
[424537553,1780989044000,-607.87,0.00016986,2]
[424537556,1780989044000,-500.0,0.00016986,2]
[424537557,1780989044000,-500.0,0.00016986,2]
[424537554,1780989044000,-500.0,0.00016986,2]
[424537552,1780989044000,-500.0,0.00016986,2]
[424537589,1780989044000,-814.22,0.00016986,2]
[424537555,1780989044000,-340.88,0.00016986,2]
[424537564,1780989044000,-500.0,0.00016986,2]
[424537569,1780989044000,-500.0,0.00016986,2]
[424537576,1780989044000,-500.0,0.00016986,2]
[424537575,1780989044000,-500.0,0.00016986,2]
[424537566,1780989044000,-500.0,0.00016986,2]
[424537562,1780989044000,-2273.56,0.00016986,2]
[424537563,1780989044000,-500.0,0.00016986,2]
[424537565,1780989044000,-556.93,0.00016986,2]
[424537567,1780989044000,-500.0,0.00016986,2]
[424537574,1780989044000,-500.0,0.00016986,2]
[424537568,1780989044000,-500.0,0.00016986,2]
[424537570,1780989044000,-500.0,0.00016986,2]
[424537571,1780989044000,-500.0,0.00016986,2]
[424537573,1780989044000,-1144.34,0.00016986,2]
[424537615,1780989044000,-685.64,0.0001726,2]
[424537623,1780989044000,-607.87,0.0001726,2]
[424537611,1780989044000,-500.0,0.0001726,2]
[424537651,1780989044000,-165.81258697,0.00017333,2]
[424537652,1780989044000,-161.736324,0.00017333,2]
[424537653,1780989044000,-500.0,0.00017534,2]
[424537660,1780989044000,-500.0,0.00017534,2]
[424537658,1780989044000,-500.0,0.00017534,2]
[424537656,1780989044000,-500.0,0.00017534,2]
[424537655,1780989044000,-500.0,0.00017534,2]
[424537657,1780989044000,-500.0,0.00017534,2]
[424537659,1780989044000,-724.11,0.00017534,2]
[424537661,1780989044000,-500.0,0.00017534,2]
[424537665,1780989044000,-173.77457691,0.00017534,2]
[424537663,1780989044000,-500.0,0.00017534,2]
[424537613,1780989044000,-500.0,0.0001726,2]
[424537666,1780989044000,-543.06,0.00017534,2]
[424537672,1780989044000,-500.0,0.00017534,2]
[424537670,1780989044000,-247.89,0.00017534,2]
[424537667,1780989044000,-500.0,0.00017534,2]
[424537662,1780989044000,-215.76965992,0.00017534,2]
[424537669,1780989044000,-500.0,0.00017534,2]
[424537668,1780989044000,-685.64,0.00017534,2]
[424537671,1780989044000,-2666.66,0.00017534,2]
[424537673,1780989044000,-607.87,0.00017534,2]
[424537676,1780989044000,-500.0,0.00017534,2]
[424537677,1780989044000,-584.17,0.00017534,2]
[424537678,1780989044000,-528.54967425,0.00017534,2]
[424537680,1780989044000,-1029.89080475,0.00017534,2]
[424537679,1780989044000,-396.11281216,0.00017534,2]
[424537649,1780989044000,-500.0,0.0001726,2]
[424537650,1780989044000,-474.56,0.0001726,2]
[424537674,1780989044000,-500.0,0.00017534,2]
[424537644,1780989044000,-500.0,0.0001726,2]
[424537648,1780989044000,-814.22,0.0001726,2]
[424537609,1780989044000,-500.0,0.0001726,2]
[424537617,1780989044000,-500.0,0.0001726,2]
[424537614,1780989044000,-492.32,0.0001726,2]
[424537616,1780989044000,-500.0,0.0001726,2]
[424537621,1780989044000,-2666.66,0.0001726,2]
[424537632,1780989044000,-500.0,0.0001726,2]
[424537633,1780989044000,-616.65,0.0001726,2]
[424537620,1780989044000,-500.0,0.0001726,2]
[424537622,1780989044000,-500.0,0.0001726,2]
[424537624,1780989044000,-500.0,0.0001726,2]
[424537627,1780989044000,-584.17,0.0001726,2]
[424537631,1780989044000,-500.0,0.0001726,2]
[424537625,1780989044000,-500.0,0.0001726,2]
[424537626,1780989044000,-500.0,0.0001726,2]
[424537646,1780989044000,-500.0,0.0001726,2]
[424537629,1780989044000,-500.0,0.0001726,2]
[424537636,1780989044000,-1144.34,0.0001726,2]
[424537634,1780989044000,-500.0,0.0001726,2]
[424537635,1780989044000,-247.04,0.0001726,2]
[424537638,1780989044000,-500.0,0.0001726,2]
[424537637,1780989044000,-500.0,0.0001726,2]
[424537639,1780989044000,-1170.14,0.0001726,2]
[424537628,1780989044000,-2273.56,0.0001726,2]
[424537643,1780989044000,-655.28,0.0001726,2]
[424537641,1780989044000,-598.59,0.0001726,2]
[424537640,1780989044000,-500.0,0.0001726,2]
[424537645,1780989044000,-500.0,0.0001726,2]
[424537647,1780989044000,-7554.59,0.0001726,2]
[424537686,1780989045000,-366.00670884,0.00017534,2]
[424537684,1780989045000,-319.00670884,0.00017534,2]
[424537685,1780989045000,-133.99329116,0.00017534,2]
[424537688,1780989045000,-500.0,0.00017534,2]
[424537691,1780989045000,-133.99329116,0.00017534,2]
[424537687,1780989045000,-500.0,0.00017534,2]
[424537690,1780989045000,-500.0,0.00017534,2]
[424537708,1780989046000,-2911.1865239,0.00016001,2]
[424537976,1780989067000,600000.0,0.00023695,30]
[424539724,1780990232000,-799.77576138,9.801e-05,2]
[424539878,1780990238000,-4200.22423862,9.801e-05,2]
[424539880,1780990238000,-518.01623558,9.999e-05,2]
[424539882,1780990238000,-281.7595258,9.999e-05,2]
[424539893,1780990238000,-1420.60305103,0.00011,2]
[424539895,1780990238000,-498.06335888,0.000115,2]
[424539884,1780990238000,-3488.49758045,0.0001,2]
[424539889,1780990238000,-151.07620258,0.00010104,2]
[424539888,1780990238000,-599.92283945,0.0001,2]
[424539891,1780990238000,-430.24070419,0.00010618,2]
[424539899,1780990238000,-168.551,0.00011999,2]
[424539900,1780990238000,-204.25139693,0.00011999,2]
[424539897,1780990238000,-203.799698,0.00011762,2]
[424539886,1780990238000,-678.64474862,0.0001,2]
[424539907,1780990239000,-500.0,0.00011999,2]
[424539915,1780990239000,-46100.39831541,0.00012,2]
[424539913,1780990239000,-419.1846696,0.00011999,2]
[424539910,1780990239000,-500.0,0.00011999,2]
[424539904,1780990239000,-500.0,0.00011999,2]
[424539902,1780990239000,-500.0,0.00011999,2]
[424540386,1780990271000,1412.11976388,0.0001159,2]
[424540387,1780990284000,236.10820495,0.00023646,120]
[424540389,1780990284000,236.10820495,0.00023646,120]
[424540388,1780990284000,236.10820495,0.00023646,120]
[424547233,1780991086000,151766.34981768,0.00023646,30]
[424550562,1780991431000,-2534.97547098,9.67e-05,2]
[424550563,1780991431000,-1126.94849858,9.67e-05,2]
[424550564,1780991431000,-2428.36624861,9.768e-05,2]
[424550565,1780991431000,-500.0,9.866e-05,2]
[424550575,1780991431000,-202.27815248,9.866e-05,2]
[424550567,1780991431000,-160.0,0.00011585,2]
[424550577,1780991431000,-62.11254182,0.00011993,2]
[424550576,1780991431000,-42.6466118,0.00011993,2]
[424550568,1780991431000,-343.76026201,0.0001159,2]
[424550573,1780991431000,-108.3533882,0.00011993,2]
[424550571,1780991431000,-589.84,0.00011735,2]
[424550572,1780991431000,-169.833081,0.00011984,2]
[424550569,1780991431000,-589.82,0.00011735,2]
[424550570,1780991431000,-589.82,0.00011735,2]
[424550574,1780991431000,-297.72184752,9.866e-05,2]
[424550566,1780991431000,-5000.0,9.867e-05,2]
[424550667,1780991443000,-193.42926872,0.00011999,2]
[424550665,1780991443000,-500.0,0.00011999,2]
[424550658,1780991443000,-508.96497037,9.866e-05,2]
[424550660,1780991443000,-207.57617817,0.00011993,2]
[424550662,1780991443000,-500.0,0.00011999,2]
[424550663,1780991443000,-500.0,0.00011999,2]
[424550669,1780991443000,-13988.02958284,0.00012,2]
[424550700,1780991446000,-1044.24218254,0.00012144,2]
[424550698,1780991446000,-14851.7742841,0.00012,2]
[424550704,1780991446000,-1028.0016361,0.00012942,2]
[424550699,1780991446000,-1842.01386082,0.00012044,2]
[424550702,1780991446000,-7052.605408,0.00012942,2]
[424550706,1780991446000,-169.833081,0.00012993,2]
[424550705,1780991446000,-212.1037078,0.00012942,2]
[424550703,1780991446000,-2158.4778848,0.00012942,2]
[424550707,1780991446000,-155.21875911,0.00013284,2]
[424550701,1780991446000,-169.833081,0.00012489,2]
[424550715,1780991446000,-808.39809096,0.00014058,2]
[424550709,1780991446000,-169.833081,0.00013498,2]
[424550711,1780991446000,-504.56736592,0.00013698,2]
[424550713,1780991446000,-262.144927,0.00013698,2]
[424550710,1780991446000,-513.95031654,0.00013698,2]
[424550712,1780991446000,-500.0,0.00013698,2]
[424550714,1780991446000,-169.833081,0.00014002,2]
[424550718,1780991446000,-152.61380999,0.00015536,7]
[424550716,1780991446000,-169.833081,0.00014507,2]
[424550717,1780991446000,-1842.0138608,0.00015133,2]
[424550719,1780991446000,-222.23735824,0.00015577,2]
[424550708,1780991446000,-230.75482762,0.00013355,2]
[424550739,1780992211000,200.0,0.00022702,120]
[424550814,1780992631000,-3102.38518216,0.00011602,2]
[424550812,1780992631000,-1845.61682534,0.00011486,2]
[424550829,1780992632000,-212.1037079,0.00011957,2]
[424550820,1780992632000,-1497.11482284,0.00011602,2]
[424550822,1780992632000,-400.499995,0.00011602,2]
[424550834,1780992632000,-159.29,0.00014102,2]
[424550825,1780992632000,-324.93233889,0.00011957,2]
[424550836,1780992632000,-343.76026201,0.00015267,2]
[424550827,1780992632000,-156.26204151,0.00011957,2]
[424550832,1780992632000,-543.91375686,0.00014058,2]
[424550840,1780992632000,-193.86757874,0.00016138,2]
[424550830,1780992632000,-474.34863059,0.00013355,2]
[424550838,1780992632000,-1381.5103956,0.00016138,2]
[424550842,1780992632000,-768.72334842,0.0001618,2]
[424550844,1780992632000,-227.91,0.00016228,3]
[424550846,1780992632000,-683.75,0.00016228,3]
[424550848,1780992632000,-500.0,0.00016237,2]
[424550850,1780992632000,-500.0,0.00016237,2]
[424550852,1780992632000,-185.40048811,0.00016237,2]
[424550854,1780992632000,-1552.13227701,0.00016238,2]
[424550931,1780992639000,-109580.92741584,0.00016238,2]
[424550929,1780992639000,-712.58951452,0.00016238,2]
[424550930,1780992639000,-3031.86099507,0.00016238,2]
[424550928,1780992639000,-3561.16026762,0.00016238,2]
[424550927,1780992639000,-29165.45556408,0.00016238,2]
[424550937,1780992640000,-5000.0,0.00016076,2]
[424550939,1780992640000,-2120.24758729,0.00016238,2]
[424550938,1780992640000,-2300.6740285,0.00016238,2]
[424550947,1780992643000,-3506.80553173,0.00016238,2]
[424550948,1780992643000,-2140.0,0.00016238,2]
[424550946,1780992643000,-152.0,0.00015538,7]
[424550964,1780992646000,-8274.93333856,0.00016238,2]
[424550963,1780992646000,-4190.90000004,0.00016238,2]
[424550967,1780992789000,1444.0,0.00023287,120]
[424550981,1780993172000,249.0,0.00023288,120]
[424551000,1780993444000,240.86,0.00017,30]
[424551029,1780993635000,-69.0,0.0001,2]
[424551027,1780993635000,-5000.0,9.045e-05,2]
[424551028,1780993635000,-5000.0,9.136e-05,2]
[424551033,1780993662000,-4516.44631959,9.801e-05,2]
[424551034,1780993662000,-483.55368041,9.9e-05,2]
[424551038,1780993681000,-325.55368041,0.0001,2]
[424551037,1780993681000,-4516.44631959,9.9e-05,2]
[424551047,1780993748000,-550.0,9.801e-05,2]
[424551051,1780993763000,-5000.0,9.9e-05,2]
[424551052,1780993763000,-4.73772115,0.0001,2]
[424551050,1780993763000,-4450.0,9.801e-05,2]
[424551112,1780993832000,-5000.0,0.00012117,2]
[424551114,1780993832000,-500.0,0.00012239,2]
[424551116,1780993832000,-500.0,0.00012239,2]
[424551118,1780993832000,-500.0,0.00012239,2]
[424551120,1780993832000,-500.0,0.00012239,2]
[424551130,1780993832000,-7298.0,0.0001224,2]
[424551132,1780993832000,-1134.51442417,0.0001224,2]
[424551124,1780993832000,-300.0,0.00012239,2]
[424551126,1780993832000,-243.0,0.00012239,2]
[424551128,1780993832000,-1023.04148758,0.0001224,2]
[424551122,1780993832000,-273.92433519,0.00012239,2]
[424551310,1780993838000,-14469.58697132,0.0001224,2]
[424551312,1780993838000,-455.82,0.00012329,2]
[424551316,1780993838000,-1000.0,0.00013699,2]
[424551326,1780993838000,-500.0,0.00014443,2]
[424551308,1780993838000,-398.97496663,0.0001224,2]
[424551323,1780993838000,-500.0,0.00014443,2]
[424551319,1780993838000,-397.72861182,0.00014058,2]
[424551317,1780993838000,-348.36089624,0.00014058,2]
[424551325,1780993838000,-500.0,0.00014443,2]
[424551314,1780993838000,-169.790678,0.00012489,2]
[424551321,1780993838000,-328.55114462,0.00014058,2]
[424551330,1780993838000,-500.0,0.00014443,2]
[424551345,1780993838000,-500.0,0.00014443,2]
[424551348,1780993838000,-55189.36451594,0.00014444,8]
[424551346,1780993838000,-460.96818549,0.00014443,2]
[424551339,1780993838000,-500.0,0.00014443,2]
[424551343,1780993838000,-500.0,0.00014443,2]
[424551334,1780993838000,-500.0,0.00014443,2]
[424551335,1780993838000,-500.0,0.00014443,2]
[424551341,1780993838000,-500.0,0.00014443,2]
[424551332,1780993838000,-500.0,0.00014443,2]
[424551337,1780993838000,-500.0,0.00014443,2]
[424551328,1780993838000,-500.0,0.00014443,2]
[424551518,1780993840000,-35.35423618,0.00014444,8]
[424551520,1780993840000,-498.19580677,0.00014444,8]
[424551853,1780993843000,-1365.59030215,0.00014444,8]
[424551872,1780993843000,-29388.11525923,0.00014444,8]
[424551855,1780993843000,-424.17702131,0.00014444,8]
[424551851,1780993843000,-694.73403175,0.00012117,2]
[424551961,1780993844000,183.77,5e-05,2]
[424552272,1780993846000,-2189.85403267,0.00014444,8]
[424552265,1780993846000,-4028.0000004,0.00014444,8]
[424552267,1780993846000,-21160.61150848,0.00014444,8]
[424552263,1780993846000,-20175.42894494,0.00014444,8]